[Event "Titled Tuesday Blitz May 25 2021"]
[White "Sanal, Vahap"]
[Black "Madaminov, Mukhiddin"]
[WhiteFideId "6300545"]
[BlackFideId "14210703"]
[WhiteElo "2507"]
[BlackElo "1747"]
[Result "1-0"]
[Round "03"]
[TimeControl "180+1"]
[Date "2021.05.25"]
[WhiteClock "0:00:32"]
[BlackClock "0:00:08"]

1. d4 {[%clk 0:03:00]}  Nf6 {[%clk 0:02:58]} 2. Bf4 {[%clk 0:03:00]}  d5 {[%clk 0:02:56]} 3. e3 {[%clk 0:03:00]}  c5 {[%clk 0:02:55]} 4. Nf3 {[%clk 0:02:58]}  Nc6 {[%clk 0:02:53]} 5. Nbd2 {[%clk 0:02:58]}  e6 {[%clk 0:02:51]} 6. c3 {[%clk 0:02:58]}  Be7 {[%clk 0:02:51]} 7. Bb5 {[%clk 0:02:58]}  O-O {[%clk 0:02:50]} 8. O-O {[%clk 0:02:58]}  Nh5 {[%clk 0:02:47]} 9. Bg3 {[%clk 0:02:53]}  Nxg3 {[%clk 0:02:46]} 10. hxg3 {[%clk 0:02:54]}  h6 {[%clk 0:02:46]} 11. Bxc6 {[%clk 0:02:52]}  bxc6 {[%clk 0:02:46]} 12. Ne5 {[%clk 0:02:52]}  Qb6 {[%clk 0:02:46]} 13. Qb3 {[%clk 0:02:48]}  Qc7 {[%clk 0:02:33]} 14. Qa4 {[%clk 0:02:44]}  Bb7 {[%clk 0:02:28]} 15. Nb3 {[%clk 0:02:43]}  Bd6 {[%clk 0:02:22]} 16. f4 {[%clk 0:02:36]}  c4 {[%clk 0:02:19]} 17. Nc5 {[%clk 0:02:32]}  a5 {[%clk 0:02:02]} 18. Rf2 {[%clk 0:02:14]}  Rfb8 {[%clk 0:01:52]} 19. Raf1 {[%clk 0:02:14]}  Ba6 {[%clk 0:01:23]} 20. f5 {[%clk 0:02:00]}  Bxc5 {[%clk 0:01:18]} 21. fxe6 {[%clk 0:01:57]}  f6 {[%clk 0:01:17]} 22. Nd7 {[%clk 0:01:54]}  Be7 {[%clk 0:01:13]} 23. e4 {[%clk 0:01:45]}  Bb5 {[%clk 0:01:09]} 24. Qc2 {[%clk 0:01:45]}  Qxg3 {[%clk 0:01:07]} 25. e5 {[%clk 0:01:40]}  Rf8 {[%clk 0:00:37]} 26. Rf3 {[%clk 0:01:35]}  Qh4 {[%clk 0:00:36]} 27. Rf4 {[%clk 0:01:25]}  Qg5 {[%clk 0:00:33]} 28. a4 {[%clk 0:00:59]}  Ba6 {[%clk 0:00:33]} 29. Rf5 {[%clk 0:00:51]}  Qe3+ {[%clk 0:00:33]} 30. Kh1 {[%clk 0:00:49]}  fxe5 {[%clk 0:00:33]} 31. Nxf8 {[%clk 0:00:48]}  Rxf8 {[%clk 0:00:31]} 32. Rxf8+ {[%clk 0:00:48]}  Bxf8 {[%clk 0:00:31]} 33. Qf5 {[%clk 0:00:48]}  Bd6 {[%clk 0:00:26]} 34. dxe5 {[%clk 0:00:47]}  Bc5 {[%clk 0:00:21]} 35. e7 {[%clk 0:00:42]}  Bxe7 {[%clk 0:00:15]} 36. Qf7+ {[%clk 0:00:42]}  Kh7 {[%clk 0:00:16]} 37. Qxe7 {[%clk 0:00:43]}  Qe2 {[%clk 0:00:15]} 38. Qf7 {[%clk 0:00:36]}  Qxe5 {[%clk 0:00:15]} 39. Qf5+ {[%clk 0:00:36]}  Qxf5 {[%clk 0:00:15]} 40. Rxf5 {[%clk 0:00:37]}  Bc8 {[%clk 0:00:15]} 41. Rf8 {[%clk 0:00:36]}  Bg4 {[%clk 0:00:15]} 42. Ra8 {[%clk 0:00:36]}  Kg6 {[%clk 0:00:13]} 43. Rxa5 {[%clk 0:00:36]}  Kf5 {[%clk 0:00:12]} 44. Rc5 {[%clk 0:00:35]}  Bd1 {[%clk 0:00:11]} 45. a5 {[%clk 0:00:35]}  Ke5 {[%clk 0:00:07]} 46. a6 {[%clk 0:00:35]}  Kd6 {[%clk 0:00:07]} 47. Ra5 {[%clk 0:00:34]}  Kc7 {[%clk 0:00:04]} 48. a7 {[%clk 0:00:34]}  Bb3 {[%clk 0:00:05]} 49. a8=Q {[%clk 0:00:34]}  Kd7 {[%clk 0:00:06]} 50. Ra7+ {[%clk 0:00:34]}  Kd6 {[%clk 0:00:06]} 51. Qe8 {[%clk 0:00:33]}  Kc5 {[%clk 0:00:07]} 52. Qe7+ {[%clk 0:00:32]}  Kb6 {[%clk 0:00:08]} 53. Qc7+ {[%clk 0:00:32]} 1-0


[Site "https://www.chess.com"]

[Event "Titled Tuesday Blitz May 25 2021"]
[White "Savitski, Andrei"]
[Black "Ljukin, Sergei"]
[WhiteFideId "13506161"]
[BlackFideId "14102200"]
[WhiteElo "2121"]
[BlackElo "2287"]
[Result "1-0"]
[Round "03"]
[TimeControl "180+1"]
[Date "2021.05.25"]
[WhiteClock "0:02:02"]
[BlackClock "0:00:10"]

1. e4 {[%clk 0:02:58]}  e6 {[%clk 0:02:52]} 2. d4 {[%clk 0:02:57]}  d5 {[%clk 0:02:52]} 3. Nd2 {[%clk 0:02:56]}  Nf6 {[%clk 0:02:51]} 4. e5 {[%clk 0:02:54]}  Nfd7 {[%clk 0:02:51]} 5. Bd3 {[%clk 0:02:55]}  c5 {[%clk 0:02:50]} 6. c3 {[%clk 0:02:56]}  Nc6 {[%clk 0:02:51]} 7. Ne2 {[%clk 0:02:57]}  cxd4 {[%clk 0:02:50]} 8. cxd4 {[%clk 0:02:57]}  f6 {[%clk 0:02:50]} 9. exf6 {[%clk 0:02:58]}  Qxf6 {[%clk 0:02:50]} 10. Nf3 {[%clk 0:02:58]}  h6 {[%clk 0:02:51]} 11. O-O {[%clk 0:02:58]}  Bd6 {[%clk 0:02:51]} 12. Be3 {[%clk 0:02:58]}  O-O {[%clk 0:02:51]} 13. Rc1 {[%clk 0:02:59]}  Rd8 {[%clk 0:02:51]} 14. Bb1 {[%clk 0:02:56]}  Nf8 {[%clk 0:02:51]} 15. Qd2 {[%clk 0:02:56]}  Bd7 {[%clk 0:02:51]} 16. Bf4 {[%clk 0:02:56]}  Be8 {[%clk 0:02:32]} 17. Bxd6 {[%clk 0:02:55]}  Rxd6 {[%clk 0:02:32]} 18. Qf4 {[%clk 0:02:55]}  Qxf4 {[%clk 0:02:22]} 19. Nxf4 {[%clk 0:02:56]}  g5 {[%clk 0:02:23]} 20. Nd3 {[%clk 0:02:56]}  Bh5 {[%clk 0:02:21]} 21. Nfe5 {[%clk 0:02:46]}  Nxd4 {[%clk 0:02:17]} 22. Rc7 {[%clk 0:02:47]}  Be2 {[%clk 0:01:42]} 23. Re1 {[%clk 0:02:45]}  Bxd3 {[%clk 0:01:41]} 24. Bxd3 {[%clk 0:02:45]}  Nc6 {[%clk 0:01:40]} 25. Ng4 {[%clk 0:02:31]}  e5 {[%clk 0:01:24]} 26. Rxb7 {[%clk 0:02:23]}  e4 {[%clk 0:01:18]} 27. Bf1 {[%clk 0:02:23]}  Rb8 {[%clk 0:01:14]} 28. Rxb8 {[%clk 0:02:19]}  Nxb8 {[%clk 0:01:14]} 29. Ne3 {[%clk 0:02:19]}  d4 {[%clk 0:00:40]} 30. Nf5 {[%clk 0:02:16]}  Rf6 {[%clk 0:00:30]} 31. Nxd4 {[%clk 0:02:16]}  Nc6 {[%clk 0:00:27]} 32. Bc4+ {[%clk 0:02:10]}  Kg7 {[%clk 0:00:25]} 33. Nxc6 {[%clk 0:02:10]}  Rxc6 {[%clk 0:00:24]} 34. Rxe4 {[%clk 0:02:11]}  Nd7 {[%clk 0:00:22]} 35. b3 {[%clk 0:02:08]}  Rd6 {[%clk 0:00:20]} 36. h4 {[%clk 0:02:07]}  Rd1+ {[%clk 0:00:17]} 37. Kh2 {[%clk 0:02:07]}  Rd2 {[%clk 0:00:16]} 38. hxg5 {[%clk 0:02:03]}  hxg5 {[%clk 0:00:15]} 39. f3 {[%clk 0:02:03]}  Nf6 {[%clk 0:00:12]} 40. Re7+ {[%clk 0:02:03]}  Kg6 {[%clk 0:00:12]} 41. Rxa7 {[%clk 0:02:03]}  g4 {[%clk 0:00:12]} 42. Kg3 {[%clk 0:02:02]}  Kf5 {[%clk 0:00:10]} 43. Ra5+ {[%clk 0:02:02]} 1-0


[Site "https://www.chess.com"]

[Event "Titled Tuesday Blitz May 25 2021"]
[White "Solon, Nathan"]
[Black "Baches Garcia, Guillermo"]
[WhiteFideId "2017229"]
[BlackFideId "2209764"]
[WhiteElo "2660"]
[BlackElo "2415"]
[Result "1-0"]
[Round "03"]
[TimeControl "180+1"]
[Date "2021.05.25"]
[WhiteClock "0:00:20"]
[BlackClock "0:00:03"]

1. d4 {[%clk 0:02:43]}  Nf6 {[%clk 0:02:59]} 2. c4 {[%clk 0:02:43]}  e6 {[%clk 0:03:00]} 3. g3 {[%clk 0:02:42]}  d5 {[%clk 0:02:59]} 4. Bg2 {[%clk 0:02:41]}  Be7 {[%clk 0:03:00]} 5. Nf3 {[%clk 0:02:38]}  O-O {[%clk 0:03:00]} 6. O-O {[%clk 0:02:39]}  dxc4 {[%clk 0:02:59]} 7. Qd2 {[%clk 0:02:39]}  c5 {[%clk 0:02:55]} 8. dxc5 {[%clk 0:02:31]}  Qc7 {[%clk 0:02:46]} 9. Na3 {[%clk 0:02:29]}  Qxc5 {[%clk 0:02:40]} 10. Qc2 {[%clk 0:02:25]}  c3 {[%clk 0:02:29]} 11. Be3 {[%clk 0:02:19]}  Qf5 {[%clk 0:02:19]} 12. Qxc3 {[%clk 0:02:08]}  Nd5 {[%clk 0:02:14]} 13. Qb3 {[%clk 0:02:07]}  Nxe3 {[%clk 0:02:13]} 14. Qxe3 {[%clk 0:01:51]}  Nc6 {[%clk 0:02:04]} 15. Rfd1 {[%clk 0:01:50]}  Bc5 {[%clk 0:01:41]} 16. Qc3 {[%clk 0:01:30]}  Bb4 {[%clk 0:01:34]} 17. Qb3 {[%clk 0:01:28]}  e5 {[%clk 0:01:29]} 18. Nh4 {[%clk 0:01:19]}  Qf6 {[%clk 0:01:09]} 19. Bxc6 {[%clk 0:01:14]}  Bxa3 {[%clk 0:01:09]} 20. Bxb7 {[%clk 0:01:06]}  Bxb7 {[%clk 0:00:41]} 21. Qxa3 {[%clk 0:01:05]}  e4 {[%clk 0:00:29]} 22. Qd6 {[%clk 0:01:03]}  Qg5 {[%clk 0:00:25]} 23. Ng2 {[%clk 0:00:56]}  h5 {[%clk 0:00:22]} 24. h4 {[%clk 0:00:55]}  Qb5 {[%clk 0:00:21]} 25. Nf4 {[%clk 0:00:49]}  e3 {[%clk 0:00:20]} 26. fxe3 {[%clk 0:00:45]}  Qf5 {[%clk 0:00:20]} 27. Qc7 {[%clk 0:00:37]}  Qe4 {[%clk 0:00:12]} 28. Kf2 {[%clk 0:00:37]}  Rae8 {[%clk 0:00:11]} 29. Rd3 {[%clk 0:00:36]}  Re7 {[%clk 0:00:07]} 30. Qd6 {[%clk 0:00:33]}  Re6 {[%clk 0:00:07]} 31. Qd4 {[%clk 0:00:31]}  Qf5 {[%clk 0:00:06]} 32. Rc1 {[%clk 0:00:28]}  Re4 {[%clk 0:00:06]} 33. Qd7 {[%clk 0:00:27]}  Rxf4+ {[%clk 0:00:05]} 34. exf4 {[%clk 0:00:24]}  Qe4 {[%clk 0:00:05]} 35. Rf3 {[%clk 0:00:22]}  Re8 {[%clk 0:00:05]} 36. Qd3 {[%clk 0:00:20]}  Qe6 {[%clk 0:00:03]} 37. Rc7 {[%clk 0:00:20]} 1-0


[Site "https://www.chess.com"]

[Event "Titled Tuesday Blitz May 25 2021"]
[White "Tari, Aryan"]
[Black "Nitin, S."]
[WhiteFideId "1510045"]
[BlackFideId "5018277"]
[WhiteElo "2656"]
[BlackElo "2431"]
[Result "1-0"]
[Round "03"]
[TimeControl "180+1"]
[Date "2021.05.25"]
[WhiteClock "0:00:12"]
[BlackClock "0:00:18"]

1. c4 {[%clk 0:03:00]}  g6 {[%clk 0:02:59]} 2. g3 {[%clk 0:02:58]}  Bg7 {[%clk 0:02:59]} 3. Bg2 {[%clk 0:02:58]}  d6 {[%clk 0:03:00]} 4. d4 {[%clk 0:02:56]}  Nf6 {[%clk 0:02:58]} 5. Nf3 {[%clk 0:02:55]}  O-O {[%clk 0:02:59]} 6. O-O {[%clk 0:02:55]}  c6 {[%clk 0:02:59]} 7. Nc3 {[%clk 0:02:50]}  Bf5 {[%clk 0:02:59]} 8. b3 {[%clk 0:02:18]}  Ne4 {[%clk 0:02:56]} 9. Bb2 {[%clk 0:02:18]}  Nxc3 {[%clk 0:02:55]} 10. Bxc3 {[%clk 0:02:19]}  Be4 {[%clk 0:02:56]} 11. Re1 {[%clk 0:02:16]}  Nd7 {[%clk 0:02:55]} 12. Bh3 {[%clk 0:02:16]}  c5 {[%clk 0:02:49]} 13. Rc1 {[%clk 0:02:12]}  Bxf3 {[%clk 0:02:42]} 14. exf3 {[%clk 0:02:12]}  cxd4 {[%clk 0:02:42]} 15. Bxd4 {[%clk 0:02:13]}  Bxd4 {[%clk 0:02:41]} 16. Qxd4 {[%clk 0:02:14]}  Ne5 {[%clk 0:02:41]} 17. Re3 {[%clk 0:02:13]}  Qb6 {[%clk 0:02:40]} 18. Qxb6 {[%clk 0:02:06]}  axb6 {[%clk 0:02:41]} 19. a4 {[%clk 0:02:07]}  f5 {[%clk 0:02:26]} 20. f4 {[%clk 0:02:05]}  Nc6 {[%clk 0:02:25]} 21. Bg2 {[%clk 0:02:03]}  Rfe8 {[%clk 0:02:12]} 22. Rce1 {[%clk 0:01:53]}  Kf8 {[%clk 0:02:10]} 23. h4 {[%clk 0:01:44]}  Ra7 {[%clk 0:02:06]} 24. h5 {[%clk 0:01:43]}  Nd8 {[%clk 0:01:53]} 25. hxg6 {[%clk 0:01:39]}  hxg6 {[%clk 0:01:53]} 26. Bd5 {[%clk 0:01:40]}  Ra8 {[%clk 0:01:48]} 27. Kg2 {[%clk 0:01:39]}  Rc8 {[%clk 0:01:46]} 28. f3 {[%clk 0:01:15]}  Rc7 {[%clk 0:01:46]} 29. g4 {[%clk 0:01:15]}  e6 {[%clk 0:01:38]} 30. c5 {[%clk 0:00:26]}  bxc5 {[%clk 0:01:35]} 31. Bc4 {[%clk 0:00:27]}  Rce7 {[%clk 0:01:29]} 32. Kg3 {[%clk 0:00:24]}  d5 {[%clk 0:01:26]} 33. Bb5 {[%clk 0:00:21]}  Nc6 {[%clk 0:01:26]} 34. Kh4 {[%clk 0:00:22]}  Kg7 {[%clk 0:01:22]} 35. Kg5 {[%clk 0:00:22]}  Kf7 {[%clk 0:00:29]} 36. Rh1 {[%clk 0:00:22]}  Kg7 {[%clk 0:00:29]} 37. Bxc6 {[%clk 0:00:19]}  bxc6 {[%clk 0:00:29]} 38. Rc3 {[%clk 0:00:14]}  e5 {[%clk 0:00:27]} 39. fxe5 {[%clk 0:00:15]}  Rxe5 {[%clk 0:00:26]} 40. f4 {[%clk 0:00:15]}  Re2 {[%clk 0:00:23]} 41. Rch3 {[%clk 0:00:13]}  Rg2 {[%clk 0:00:18]} 42. Rh7+ {[%clk 0:00:13]}  Kf8 {[%clk 0:00:18]} 43. Kf6 {[%clk 0:00:12]} 1-0


[Site "https://www.chess.com"]

[Event "Titled Tuesday Blitz May 25 2021"]
[White "Tarigan, Gilbert Elroy"]
[Black "Lopez Gracia, Fernando"]
[WhiteFideId "7108133"]
[BlackFideId "2207184"]
[WhiteElo "1908"]
[BlackElo "2337"]
[Result "1/2-1/2"]
[Round "03"]
[TimeControl "180+1"]
[Date "2021.05.25"]
[WhiteClock "0:02:11"]
[BlackClock "0:02:42"]

1. e4 {[%clk 0:02:46]}  e5 {[%clk 0:02:59]} 2. Nf3 {[%clk 0:02:45]}  Nc6 {[%clk 0:02:59]} 3. Bb5 {[%clk 0:02:43]}  a6 {[%clk 0:03:00]} 4. Bxc6 {[%clk 0:02:40]}  dxc6 {[%clk 0:03:00]} 5. d3 {[%clk 0:02:38]}  Bd6 {[%clk 0:02:52]} 6. Nbd2 {[%clk 0:02:37]}  Ne7 {[%clk 0:02:45]} 7. Nc4 {[%clk 0:02:35]}  f6 {[%clk 0:02:45]} 8. Ne3 {[%clk 0:02:25]}  Be6 {[%clk 0:02:44]} 9. h4 {[%clk 0:02:24]}  Qd7 {[%clk 0:02:44]} 10. h5 {[%clk 0:02:24]}  O-O-O {[%clk 0:02:43]} 11. Nh4 {[%clk 0:02:22]}  g6 {[%clk 0:02:42]} 12. Bd2 {[%clk 0:02:11]}  f5 {[%clk 0:02:42]} 1/2-1/2


[Site "https://www.chess.com"]

[Event "Titled Tuesday Blitz May 25 2021"]
[White "Timmermans, Mark"]
[Black "Isajevsky, Anton"]
[WhiteFideId "1026399"]
[BlackFideId "4142500"]
[WhiteElo "2460"]
[BlackElo "2510"]
[Result "0-1"]
[Round "03"]
[TimeControl "180+1"]
[Date "2021.05.25"]
[WhiteClock "0:00:20"]
[BlackClock "0:00:10"]

1. b4 {[%clk 0:02:53]}  d5 {[%clk 0:02:58]} 2. Bb2 {[%clk 0:02:51]}  Nf6 {[%clk 0:02:58]} 3. b5 {[%clk 0:02:49]}  Bf5 {[%clk 0:02:54]} 4. a4 {[%clk 0:02:50]}  e6 {[%clk 0:02:54]} 5. e3 {[%clk 0:02:51]}  Be7 {[%clk 0:02:50]} 6. c4 {[%clk 0:02:51]}  O-O {[%clk 0:02:49]} 7. Nf3 {[%clk 0:02:52]}  h6 {[%clk 0:02:48]} 8. Be2 {[%clk 0:02:51]}  Nbd7 {[%clk 0:02:44]} 9. O-O {[%clk 0:02:51]}  Bh7 {[%clk 0:02:34]} 10. d4 {[%clk 0:02:49]}  c6 {[%clk 0:02:32]} 11. Nc3 {[%clk 0:02:47]}  Ne4 {[%clk 0:02:26]} 12. Qb3 {[%clk 0:02:45]}  Nxc3 {[%clk 0:02:12]} 13. Bxc3 {[%clk 0:02:46]}  dxc4 {[%clk 0:01:49]} 14. Bxc4 {[%clk 0:02:46]}  Nb6 {[%clk 0:01:48]} 15. Be2 {[%clk 0:02:40]}  Nd5 {[%clk 0:01:29]} 16. Bb2 {[%clk 0:02:34]}  c5 {[%clk 0:01:26]} 17. dxc5 {[%clk 0:02:31]}  Bxc5 {[%clk 0:01:26]} 18. Rfd1 {[%clk 0:02:32]}  Qe7 {[%clk 0:01:25]} 19. Rac1 {[%clk 0:02:28]}  Rac8 {[%clk 0:01:24]} 20. Rc4 {[%clk 0:02:21]}  Bd6 {[%clk 0:00:44]} 21. Rg4 {[%clk 0:02:12]}  f6 {[%clk 0:00:40]} 22. Bc4 {[%clk 0:02:04]}  Kh8 {[%clk 0:00:36]} 23. Nd4 {[%clk 0:01:55]}  Be5 {[%clk 0:00:19]} 24. Nxe6 {[%clk 0:01:49]}  Qxe6 {[%clk 0:00:19]} 25. h3 {[%clk 0:01:25]}  Bxb2 {[%clk 0:00:16]} 26. Bxd5 {[%clk 0:01:24]}  Qe5 {[%clk 0:00:16]} 27. f4 {[%clk 0:00:48]}  Qc3 {[%clk 0:00:16]} 28. Qxc3 {[%clk 0:00:49]}  Bxc3 {[%clk 0:00:16]} 29. Bxb7 {[%clk 0:00:49]}  Rcd8 {[%clk 0:00:17]} 30. Rc1 {[%clk 0:00:36]}  Bd2 {[%clk 0:00:16]} 31. Rc7 {[%clk 0:00:37]}  Bxe3+ {[%clk 0:00:17]} 32. Kh2 {[%clk 0:00:37]}  Rg8 {[%clk 0:00:17]} 33. Kg3 {[%clk 0:00:31]}  Bf5 {[%clk 0:00:09]} 34. Rh4 {[%clk 0:00:28]}  Kh7 {[%clk 0:00:09]} 35. Kf3 {[%clk 0:00:25]}  Bb6 {[%clk 0:00:09]} 36. Rc3 {[%clk 0:00:19]}  Rd3+ {[%clk 0:00:10]} 37. Rxd3 {[%clk 0:00:20]}  Bxd3 {[%clk 0:00:11]} 38. g4 {[%clk 0:00:20]}  g5 {[%clk 0:00:10]} 39. fxg5 {[%clk 0:00:20]}  fxg5 {[%clk 0:00:11]} 40. Rh5 {[%clk 0:00:20]}  Bg6 {[%clk 0:00:12]} 41. Be4 {[%clk 0:00:20]}  Rf8+ {[%clk 0:00:12]} 42. Bf5 {[%clk 0:00:18]}  Rxf5+ {[%clk 0:00:10]} 43. gxf5 {[%clk 0:00:18]}  Bxh5+ {[%clk 0:00:11]} 44. Ke4 {[%clk 0:00:19]}  Kg7 {[%clk 0:00:11]} 45. Kd5 {[%clk 0:00:19]}  Kf6 {[%clk 0:00:12]} 46. Kc6 {[%clk 0:00:20]}  Kxf5 {[%clk 0:00:12]} 47. Kb7 {[%clk 0:00:21]}  Bd1 {[%clk 0:00:11]} 48. a5 {[%clk 0:00:21]}  Bxa5 {[%clk 0:00:12]} 49. Kxa7 {[%clk 0:00:22]}  Be1 {[%clk 0:00:09]} 50. b6 {[%clk 0:00:23]}  Bf2 {[%clk 0:00:09]} 51. Ka6 {[%clk 0:00:23]}  Be2+ {[%clk 0:00:10]} 52. Ka5 {[%clk 0:00:22]}  Bf3 {[%clk 0:00:10]} 53. h4 {[%clk 0:00:20]}  gxh4 {[%clk 0:00:10]} 0-1


[Site "https://www.chess.com"]

[Event "Titled Tuesday Blitz May 25 2021"]
[White "Tregubov, Pavel V."]
[Black "The_filthy"]
[WhiteFideId "4115341"]
[WhiteElo "2423"]
[BlackElo "2427"]
[Result "0-1"]
[Round "03"]
[TimeControl "180+1"]
[Date "2021.05.25"]
[WhiteClock "0:00:40"]
[BlackClock "0:00:29"]

1. e4 {[%clk 0:03:00]}  e6 {[%clk 0:02:59]} 2. d4 {[%clk 0:03:00]}  d5 {[%clk 0:02:59]} 3. exd5 {[%clk 0:03:00]}  exd5 {[%clk 0:02:59]} 4. Nf3 {[%clk 0:03:01]}  Nf6 {[%clk 0:03:00]} 5. Bd3 {[%clk 0:03:01]}  Be7 {[%clk 0:03:00]} 6. O-O {[%clk 0:03:00]}  O-O {[%clk 0:03:00]} 7. h3 {[%clk 0:03:01]}  c5 {[%clk 0:03:00]} 8. dxc5 {[%clk 0:02:55]}  Bxc5 {[%clk 0:03:00]} 9. Bg5 {[%clk 0:02:55]}  h6 {[%clk 0:03:00]} 10. Bh4 {[%clk 0:02:55]}  Nc6 {[%clk 0:03:00]} 11. Nc3 {[%clk 0:02:54]}  Be6 {[%clk 0:03:00]} 12. Re1 {[%clk 0:02:49]}  Re8 {[%clk 0:02:59]} 13. Qd2 {[%clk 0:02:35]}  Be7 {[%clk 0:02:42]} 14. Rad1 {[%clk 0:02:30]}  Qb6 {[%clk 0:02:32]} 15. Qc1 {[%clk 0:02:18]}  Rac8 {[%clk 0:02:20]} 16. a3 {[%clk 0:02:11]}  Na5 {[%clk 0:02:08]} 17. Nd4 {[%clk 0:02:07]}  Nc4 {[%clk 0:02:00]} 18. Nxe6 {[%clk 0:02:01]}  fxe6 {[%clk 0:01:57]} 19. Bg6 {[%clk 0:01:49]}  Rf8 {[%clk 0:01:47]} 20. Re2 {[%clk 0:01:29]}  Qxb2 {[%clk 0:01:26]} 21. Qxb2 {[%clk 0:01:24]}  Nxb2 {[%clk 0:01:25]} 22. Rb1 {[%clk 0:01:25]}  Rxc3 {[%clk 0:01:15]} 23. Rxb2 {[%clk 0:01:24]}  b6 {[%clk 0:01:13]} 24. Rxe6 {[%clk 0:01:13]}  Bc5 {[%clk 0:01:08]} 25. a4 {[%clk 0:01:01]}  Ne4 {[%clk 0:00:54]} 26. Bxe4 {[%clk 0:00:55]}  dxe4 {[%clk 0:00:55]} 27. Rxe4 {[%clk 0:00:55]}  g5 {[%clk 0:00:55]} 28. Rg4 {[%clk 0:00:51]}  Kh7 {[%clk 0:00:51]} 29. Bg3 {[%clk 0:00:51]}  Rf5 {[%clk 0:00:38]} 30. h4 {[%clk 0:00:50]}  h5 {[%clk 0:00:34]} 31. Rxg5 {[%clk 0:00:41]}  Rxg5 {[%clk 0:00:33]} 32. hxg5 {[%clk 0:00:41]}  Rxg3 {[%clk 0:00:34]} 33. a5 {[%clk 0:00:42]}  Rxg5 {[%clk 0:00:33]} 34. axb6 {[%clk 0:00:42]}  axb6 {[%clk 0:00:33]} 35. Ra2 {[%clk 0:00:43]}  Rd5 {[%clk 0:00:31]} 36. g3 {[%clk 0:00:42]}  Rd2 {[%clk 0:00:31]} 37. Ra7+ {[%clk 0:00:40]}  Kg6 {[%clk 0:00:29]} 0-1


[Site "https://www.chess.com"]

[Event "Titled Tuesday Blitz May 25 2021"]
[White "Tronenkovs, Valdis"]
[Black "Zakhartsov, Vladimir"]
[WhiteFideId "11601558"]
[BlackFideId "4145097"]
[WhiteElo "2232"]
[BlackElo "2462"]
[Result "1-0"]
[Round "03"]
[TimeControl "180+1"]
[Date "2021.05.25"]
[WhiteClock "0:00:05"]
[BlackClock "0:00:02"]

1. e4 {[%clk 0:03:00]}  c5 {[%clk 0:02:59]} 2. Ne2 {[%clk 0:03:00]}  d6 {[%clk 0:02:53]} 3. g3 {[%clk 0:02:59]}  d5 {[%clk 0:02:48]} 4. Bg2 {[%clk 0:02:55]}  dxe4 {[%clk 0:02:48]} 5. Nbc3 {[%clk 0:02:55]}  Bd7 {[%clk 0:02:43]} 6. O-O {[%clk 0:02:44]}  Bc6 {[%clk 0:02:41]} 7. Nxe4 {[%clk 0:02:42]}  e5 {[%clk 0:02:38]} 8. f4 {[%clk 0:02:20]}  f5 {[%clk 0:02:10]} 9. Ng5 {[%clk 0:02:05]}  Bxg2 {[%clk 0:02:08]} 10. Kxg2 {[%clk 0:02:05]}  h6 {[%clk 0:01:58]} 11. Nf3 {[%clk 0:01:51]}  e4 {[%clk 0:01:57]} 12. Ne5 {[%clk 0:01:51]}  Nf6 {[%clk 0:01:49]} 13. d4 {[%clk 0:01:38]}  Bd6 {[%clk 0:01:41]} 14. dxc5 {[%clk 0:01:29]}  Bxe5 {[%clk 0:01:14]} 15. Qxd8+ {[%clk 0:01:29]}  Kxd8 {[%clk 0:01:14]} 16. fxe5 {[%clk 0:01:29]}  Nfd7 {[%clk 0:01:13]} 17. Rxf5 {[%clk 0:01:21]}  Nxc5 {[%clk 0:01:13]} 18. Be3 {[%clk 0:01:18]}  Ne6 {[%clk 0:01:11]} 19. Rf7 {[%clk 0:01:14]}  Kc8 {[%clk 0:01:10]} 20. Nf4 {[%clk 0:01:09]}  Ng5 {[%clk 0:01:00]} 21. Rxg7 {[%clk 0:01:04]}  Nc6 {[%clk 0:01:01]} 22. e6 {[%clk 0:00:43]}  Re8 {[%clk 0:00:57]} 23. Rd1 {[%clk 0:00:40]}  Nd8 {[%clk 0:00:50]} 24. e7 {[%clk 0:00:29]}  Nc6 {[%clk 0:00:50]} 25. Nd5 {[%clk 0:00:24]}  Ne6 {[%clk 0:00:40]} 26. Rh7 {[%clk 0:00:24]}  b6 {[%clk 0:00:26]} 27. b4 {[%clk 0:00:15]}  Nc7 {[%clk 0:00:23]} 28. Nxc7 {[%clk 0:00:12]}  Kxc7 {[%clk 0:00:24]} 29. Bf4+ {[%clk 0:00:12]}  Kc8 {[%clk 0:00:16]} 30. Rxh6 {[%clk 0:00:07]}  Nxb4 {[%clk 0:00:10]} 31. Rd8+ {[%clk 0:00:07]}  Kb7 {[%clk 0:00:10]} 32. Rxa8 {[%clk 0:00:06]}  Kxa8 {[%clk 0:00:06]} 33. Bd6 {[%clk 0:00:05]}  Nd5 {[%clk 0:00:04]} 34. Re6 {[%clk 0:00:05]}  Kb7 {[%clk 0:00:03]} 35. Rxe4 {[%clk 0:00:05]}  Kc6 {[%clk 0:00:04]} 36. Ba3 {[%clk 0:00:05]}  b5 {[%clk 0:00:04]} 37. Re6+ {[%clk 0:00:05]}  Kc7 {[%clk 0:00:04]} 38. h4 {[%clk 0:00:04]}  b4 {[%clk 0:00:03]} 39. Bc1 {[%clk 0:00:04]}  Kd7 {[%clk 0:00:03]} 40. Re5 {[%clk 0:00:04]}  Nxe7 {[%clk 0:00:01]} 41. Bg5 {[%clk 0:00:03]}  Nc6 {[%clk 0:00:01]} 42. Rxe8 {[%clk 0:00:03]}  Kxe8 {[%clk 0:00:02]} 43. Be3 {[%clk 0:00:03]}  a5 {[%clk 0:00:02]} 44. Kf3 {[%clk 0:00:03]}  Kf7 {[%clk 0:00:01]} 45. Ke4 {[%clk 0:00:03]}  Ke6 {[%clk 0:00:02]} 46. g4 {[%clk 0:00:03]}  Ne5 {[%clk 0:00:02]} 47. Kf4 {[%clk 0:00:03]}  Nc4 {[%clk 0:00:02]} 48. Bc1 {[%clk 0:00:02]}  a4 {[%clk 0:00:02]} 49. h5 {[%clk 0:00:03]}  Kf7 {[%clk 0:00:02]} 50. g5 {[%clk 0:00:03]}  Na5 {[%clk 0:00:02]} 51. g6+ {[%clk 0:00:03]}  Kg7 {[%clk 0:00:03]} 52. Kg5 {[%clk 0:00:04]}  Nc4 {[%clk 0:00:03]} 53. h6+ {[%clk 0:00:04]}  Kg8 {[%clk 0:00:03]} 54. Kf6 {[%clk 0:00:04]}  Nd6 {[%clk 0:00:02]} 55. h7+ {[%clk 0:00:04]}  Kh8 {[%clk 0:00:02]} 56. Bb2 {[%clk 0:00:05]}  Nc4 {[%clk 0:00:02]} 57. Bd4 {[%clk 0:00:05]} 1-0


[Site "https://www.chess.com"]